bitfinex/quotes_ETHUSD_20230404
["timestamp","ask_amount","ask_price","bid_price","bid_amount"]
[1680621900982,0.15964,1858.7,1858.2,2.025]
[1680621901227,0.009,1858.7,1858.2,2.24026]
[1680621901393,0.006,1858.7,1858.2,2.24026]
[1680621901598,0.40474014,1858.8,1858.3,0.224026]
[1680621902198,0.70600014,1858.8,1858.3,0.224026]
[1680621902737,0.70600014,1858.8,1858.2,0.02192555]
[1680621905626,0.70024242,1858.8,1858.2,0.02592555]
[1680621905786,0.69424242,1858.8,1858.2,0.02192555]
[1680621906524,3.4602646,1858.8,1858.2,0.02192555]
[1680621906729,0.15065,1858.6,1858.2,0.02192555]
[1680621907034,0.45195,1858.6,1858.2,0.02192555]
[1680621907597,0.45195,1858.6,1858.1,0.006]
[1680621907799,2.76602218,1858.5,1858.0,0.006]
[1680621908100,2.76602218,1858.5,1857.8,0.2153]
[1680621908101,0.15067,1858.4,1857.8,0.2153]
[1680621908326,0.15067,1858.4,1857.8,1.545823]
[1680621908640,0.452,1858.4,1857.8,1.330523]
[1680621908840,0.15067,1858.4,1857.8,1.545823]
[1680621909132,0.15067,1858.4,1857.9,0.1545823]
[1680621909294,0.452,1858.4,1857.9,0.002]
[1680621911544,0.15067,1858.4,1857.9,0.002]
[1680621911756,0.30131,1858.5,1857.9,0.002]
[1680621911954,0.15065,1858.5,1858.0,0.02192792]
[1680621912448,0.15065,1858.5,1858.0,0.02392792]
[1680621912642,0.15065,1858.5,1858.0,0.02192792]
[1680621912854,0.45196,1858.5,1858.0,0.02192792]
[1680621913024,3.32344018,1858.5,1858.0,0.02192792]
[1680621913225,3.32344018,1858.5,1857.9,0.002]
[1680621913433,3.59153931,1858.5,1857.9,0.002]
[1680621913748,3.59153931,1858.5,1857.8,0.006]
[1680621914152,3.80686531,1858.5,1857.8,0.006]
[1680621914457,0.45204,1858.3,1857.8,0.006]
[1680621914951,3.21806218,1858.3,1857.8,0.006]
[1680621915816,3.21806218,1858.3,1857.7,0.006]
[1680621916749,0.02193266,1858.2,1857.5,10.27003264]
[1680621916928,0.1507,1858.0,1857.5,10.27003264]
[1680621918339,0.009,1858.1,1857.5,10.48537264]
[1680621918538,0.18161266,1858.2,1857.6,1.26385726]
[1680621919163,0.03093266,1858.2,1857.6,10.10653944]
[1680621919351,0.009,1858.2,1857.6,10.10653944]
[1680621919551,0.009,1858.3,1857.6,10.10653944]
[1680621919861,0.15968,1858.3,1857.7,1.22596394]
[1680621920825,0.009,1858.3,1857.7,1.22596394]
[1680621921028,0.009,1858.4,1857.8,2.76602218]
[1680621921344,0.15966,1858.4,1857.9,2.025]
[1680621921541,0.15966,1858.4,1857.7,2.23931]
[1680621921542,0.45199,1858.4,1857.7,2.23931]
[1680621921760,0.45199,1858.4,1857.8,0.223931]
[1680621922274,3.23994484,1858.4,1857.6,1.05053726]
[1680621922582,3.24894484,1858.4,1857.6,1.04853726]
[1680621922747,0.32489448,1858.3,1857.6,1.04853726]
[1680621922949,0.15069,1858.1,1857.6,1.04853726]
[1680621923163,0.45207,1858.1,1857.5,10.27203264]
[1680621923363,0.45207,1858.1,1857.5,10.27003264]
[1680621923679,0.46107,1858.1,1857.5,10.27003264]
[1680621923885,0.48300266,1858.1,1857.5,12.4287359]
[1680621925562,0.48300266,1858.1,1857.5,10.27003264]
[1680621928439,0.48300266,1858.1,1857.4,0.002]
[1680621928748,3.24902484,1858.1,1857.3,0.21536]
[1680621929088,3.24902484,1858.1,1857.2,35.07036]
[1680621929307,0.15071,1857.9,1857.2,45.75687]
[1680621929910,0.45212,1857.9,1857.2,45.75687]
[1680621930285,0.15071,1857.9,1857.2,46.18762]
[1680621930809,0.15071,1857.9,1857.2,45.75687]
[1680621931196,0.45212,1857.9,1857.2,45.75687]
[1680621931374,0.45212,1857.9,1857.2,45.75686]
[1680621931572,0.45212,1857.9,1857.2,42.5415]
[1680621931877,0.45212,1857.9,1857.2,40.5165]
[1680621932190,2.76602218,1857.8,1857.2,29.83]
[1680621932387,2.77502218,1857.8,1857.2,30.04537]
[1680621932576,2.92574218,1857.8,1857.2,0.21537]
[1680621933283,0.009,1857.8,1857.2,0.64612]
[1680621933496,0.009,1857.9,1857.3,2.088612]
[1680621933813,0.009,1858.1,1857.4,0.64603]
[1680621934017,2.77502218,1858.1,1857.4,0.64603]
[1680621934189,0.009,1858.1,1857.4,0.64603]
[1680621934382,0.009,1858.1,1857.3,2.950042]
[1680621934383,0.009,1858.1,1857.6,0.21532]
[1680621934708,0.03093266,1858.2,1857.6,0.21532]
[1680621935900,0.18161266,1858.2,1857.5,0.646]
[1680621936120,0.80787114,1858.2,1857.5,0.27994]
[1680621936422,0.80787114,1858.2,1857.4,0.21534]
[1680621937094,2.76602218,1858.1,1857.4,0.21535]
[1680621937294,3.92502218,1858.1,1857.3,3.90514476]
[1680621937479,0.39250222,1858.0,1857.4,0.64604]
[1680621937819,3.1585244,1858.0,1857.4,0.64604]
[1680621938122,3.1675244,1858.0,1857.4,0.21534]
[1680621938282,3.1675244,1858.0,1857.4,0.64604]
[1680621938622,0.31675244,1857.9,1857.4,0.21534]
[1680621939421,0.31367925,1857.9,1857.4,0.21734]
[1680621939979,0.46437925,1857.9,1857.4,0.002]
[1680621940182,0.76578925,1857.9,1857.3,0.006]
[1680621940409,2.8426011,1857.8,1857.2,30.05137]
[1680621940622,2.9933211,1857.8,1857.2,30.05137]
[1680621940779,3.2947511,1857.8,1857.1,0.008]
[1680621940979,3.2947511,1857.8,1857.0,0.006]
[1680621940980,8.855,1857.7,1857.0,0.006]
[1680621941294,8.855,1857.7,1856.8,0.1]
[1680621941295,1.15,1857.1,1856.8,0.1]
[1680621941704,1.05546,1857.0,1856.8,0.1]
[1680621942036,3.82148218,1857.0,1856.8,0.1]
[1680621942333,4.97348218,1857.0,1856.8,0.1]
[1680621942635,7.47951088,1856.9,1856.8,0.1]
[1680621942801,11.64151088,1856.9,1856.8,0.1]
[1680621943430,6.64151088,1856.9,1856.8,0.1]
[1680621943632,14.40753306,1856.9,1856.8,0.1]
[1680621944199,9.40753306,1856.9,1856.8,0.1]
[1680621944498,3.15378,1856.9,1856.8,0.1]
[1680621944713,0.15078,1856.9,1856.8,0.1]
[1680621944916,0.15078,1857.0,1856.8,0.1]
[1680621945436,0.45234,1857.0,1856.8,0.1]
[1680621945997,0.47427266,1857.0,1856.8,0.1]
[1680621946203,0.58200893,1857.0,1856.8,0.1]
[1680621946615,2.76602218,1856.9,1856.8,0.1]
[1680621946827,3.82152218,1856.9,1856.8,0.1]
[1680621947027,6.82152218,1856.9,1856.8,0.1]
[1680621947228,3.82452218,1856.9,1856.8,0.1]
[1680621947434,4.51694129,1856.9,1856.8,0.1]
[1680621947585,6.91379129,1856.9,1856.8,0.1]
[1680621947790,6.91679129,1856.9,1856.8,0.1]
[1680621949203,3.003,1856.9,1856.8,0.1]
[1680621949390,3.15078,1856.9,1856.8,0.1]
[1680621949738,0.43122893,1857.0,1856.8,0.1]
[1680621949916,0.17271266,1857.0,1856.8,0.1]
[1680621950307,0.58997156,1857.0,1856.8,0.1]
[1680621954215,0.59597156,1857.0,1856.8,0.09613364]
[1680621954420,1.21337972,1857.0,1856.8,0.09613364]
[1680621955161,0.58997156,1857.0,1856.8,0.09613364]
[1680621955661,0.28841156,1857.0,1856.8,0.09613364]
[1680621956019,0.58997156,1857.0,1856.8,0.09613364]
[1680621956854,0.13763156,1857.0,1856.8,0.09613364]
[1680621957149,0.28841156,1857.0,1856.8,0.09613364]
[1680621957502,0.58997156,1857.0,1856.8,0.09613364]
[1680621957753,0.28841156,1857.0,1856.8,0.09613364]
[1680621959210,2.76602218,1856.9,1856.8,0.09613364]
[1680621959444,0.02193266,1856.9,1856.8,0.09613364]
[1680621960322,0.17271266,1856.9,1856.8,0.09613364]
[1680621961436,0.47428266,1856.9,1856.8,0.09613364]
[1680621962358,10.27230484,1856.9,1856.8,0.09613364]
[1680621962569,5.0,1856.7,1856.6,0.1]
[1680621962709,5.85665218,1856.7,1856.6,0.1]
[1680621962903,8.85665218,1856.7,1856.6,0.1]
[1680621963152,14.8931184,1856.7,1856.6,0.1]
[1680621963649,9.8931184,1856.7,1856.6,0.1]
[1680621963853,14.8931184,1856.7,1856.6,0.1]
[1680621964007,9.8931184,1856.7,1856.6,0.1]
[1680621964217,0.1538,1856.7,1856.6,0.1]
[1680621964413,0.26809913,1856.7,1856.6,0.1]
[1680621964606,0.1508,1856.7,1856.6,0.1]
[1680621964808,0.43920156,1857.0,1856.6,0.1]
[1680621965134,0.15079,1856.9,1856.6,0.1]
[1680621965324,0.45236,1856.9,1856.6,0.1]
[1680621966758,0.13763156,1857.0,1856.6,0.1]
[1680621966965,0.28841156,1857.0,1856.6,0.3121]
[1680621967170,0.13763156,1857.0,1856.6,0.3121]
[1680621967466,0.28841156,1857.0,1856.6,0.3121]
[1680621968175,0.13763156,1857.0,1856.6,5.32256218]
[1680621968376,0.13763156,1857.0,1856.7,0.53225622]
[1680621968675,0.13763156,1857.0,1856.7,0.75367622]
[1680621968858,0.13763156,1857.0,1856.7,0.53825622]
[1680621969165,0.13763156,1857.0,1856.7,3.3042784]
[1680621969376,0.13763156,1857.0,1856.8,0.33042784]
[1680621969672,0.13763156,1857.0,1856.8,0.55184784]
[1680621969879,0.13763156,1857.0,1856.8,0.33642784]
[1680621970226,0.13763156,1857.0,1856.8,3.10245002]
[1680621971823,0.13763156,1857.0,1856.8,3.31787002]
[1680621972029,0.13763156,1857.0,1856.9,0.331787]
[1680621972248,0.13763156,1857.0,1856.9,0.337787]
[1680621973859,1.154386,1857.3,1856.9,0.337787]
[1680621973860,1.154386,1857.3,1857.0,0.5]
[1680621974060,1.154386,1857.3,1857.1,5.01340218]
[1680621974358,1.154386,1857.3,1857.2,0.71671022]
[1680621974560,1.154386,1857.3,1857.2,0.72271022]
[1680621975136,1.154386,1857.3,1857.2,9.1347324]
[1680621975361,1.154386,1857.3,1857.2,9.3647324]
[1680621975722,0.15071,1857.9,1857.2,9.3647324]
[1680621975921,0.91254423,1858.0,1857.3,3.70249542]
[1680621976263,14.12514218,1857.9,1857.3,0.006]
[1680621976472,15.63521218,1857.9,1856.9,10.6279]
[1680621976651,15.90331131,1857.9,1856.9,10.6339]
[1680621976966,15.90331131,1857.9,1856.9,15.64733218]
[1680621976967,0.15073,1857.6,1856.9,15.64733218]
[1680621977127,0.15072,1857.7,1857.0,2.98140218]
[1680621977324,0.15072,1857.7,1857.1,0.29814022]
[1680621977540,0.15072,1857.7,1857.1,0.21537]
[1680621977833,0.15072,1857.7,1857.2,2.76602218]
[1680621977834,0.15073,1857.7,1857.2,2.76602218]
[1680621978034,0.45217,1857.7,1857.2,8.43402218]
[1680621978234,0.15073,1857.7,1857.3,0.84340222]
[1680621978453,0.60285,1857.9,1857.3,2.76602218]
[1680621978454,0.15071,1857.8,1857.3,2.76602218]
[1680621978656,1.28894211,1858.0,1857.4,5.00236218]
[1680621978826,1.28594211,1858.0,1857.6,2.032]
[1680621979226,0.13155611,1858.0,1857.6,2.032]
[1680621979425,0.13155611,1858.0,1857.6,2.24733]
[1680621983248,0.26068001,1858.2,1857.8,2.2352]
[1680621983442,0.26068001,1858.2,1857.6,13.2304]
[1680621983651,0.39660131,1858.2,1857.6,16.20974218]
[1680621983846,0.39660131,1858.2,1857.6,15.99442218]
[1680621984086,0.39660131,1858.2,1857.6,16.20975218]
[1680621984294,0.39660131,1858.2,1857.7,1.62097522]
[1680621984576,0.24592131,1858.2,1857.7,1.83627522]
[1680621986271,0.24592131,1858.2,1857.8,2.76602218]
[1680621986477,0.24592131,1858.2,1857.8,2.98132218]
[1680621987047,0.24592131,1858.2,1857.8,3.41193218]
[1680621987264,0.11000001,1858.2,1857.9,0.34119322]
[1680621987835,0.11000001,1858.2,1857.9,0.55648322]
[1680621988268,0.11000001,1858.2,1858.0,10.45302218]
[1680621988578,0.11000001,1858.2,1858.1,2.67781]
[1680621988777,0.11000001,1858.2,1858.1,5.44383218]
[1680621988947,0.11000001,1858.2,1858.1,4.79941762]
[1680621989276,0.11000001,1858.2,1858.1,9.81960762]
[1680621989483,0.11000001,1858.2,1858.0,0.002]
[1680621989778,0.11000001,1858.2,1857.9,11.39559322]
[1680621990348,0.11000001,1858.2,1858.0,2.76602218]
[1680621990749,0.11000001,1858.2,1857.9,11.39759322]
[1680621991053,0.11000001,1858.2,1858.0,2.76602218]
[1680621991385,0.11000001,1858.2,1858.1,0.27660222]
[1680621991563,0.11000001,1858.2,1858.0,2.76602218]
[1680621994280,0.11000001,1858.2,1858.0,8.64730218]
[1680621995840,0.11000001,1858.2,1858.1,0.23]
[1680621996087,0.11000001,1858.2,1858.1,8.87729218]
[1680621996583,0.11000001,1858.2,1858.1,8.66202218]
[1680621996902,0.11000001,1858.2,1858.1,9.9673214]
[1680621997068,0.11000001,1858.2,1858.1,12.9673214]
[1680621997271,0.11000001,1858.2,1858.1,12.7520514]
[1680621997488,0.11000001,1858.2,1858.1,12.9673214]
[1680621998461,0.11000001,1858.2,1858.1,13.3978614]
[1680621999288,0.11000001,1858.2,1858.1,15.4248614]
[1680622000010,0.11324229,1858.8,1858.1,15.4248614]
[1680622000158,0.11324229,1858.8,1858.4,5.88123]
[1680622000159,0.10724229,1858.8,1858.4,5.88123]
[1680622000360,0.10724229,1858.8,1858.6,5.666]
[1680622000587,0.10724229,1858.8,1858.7,2.76602218]
[1680622002405,0.10724229,1858.8,1858.5,16.0951]
[1680622002608,0.10724229,1858.8,1858.6,1.60951]
[1680622003794,0.10724229,1858.8,1858.6,4.59074218]
[1680622004224,0.10724229,1858.8,1858.6,10.25674218]
[1680622004965,0.10724229,1858.8,1858.7,8.66202218]
[1680622005691,0.10724229,1858.8,1858.7,8.87722218]
[1680622005832,0.10724229,1858.8,1858.7,9.9260954]
[1680622006033,0.10724229,1858.8,1858.7,9.7108954]
[1680622007428,0.10724229,1858.8,1858.7,3.8148954]
[1680622007772,0.10724229,1858.8,1858.7,8.43202218]
[1680622007976,0.10724229,1858.8,1858.7,8.87722218]
[1680622009076,0.10724229,1858.8,1858.7,8.66202218]
[1680622010179,0.10724229,1858.8,1858.7,2.76602218]
[1680622011174,0.10724229,1858.8,1858.7,8.43202218]
[1680622011346,0.10724229,1858.8,1858.7,9.4363754]
[1680622012173,0.10724229,1858.8,1858.7,9.6515754]
[1680622012379,1.12263048,1858.8,1858.7,9.6515754]
[1680622013647,1.12263048,1858.8,1858.7,10.0819754]
[1680622013848,1.12263048,1858.8,1858.7,10.3119754]
[1680622015843,1.12263048,1858.8,1858.7,9.8815754]
[1680622016327,1.12263048,1858.8,1858.7,9.6663754]
[1680622016479,1.12263048,1858.8,1858.7,9.8815754]
[1680622016674,0.10724229,1858.8,1858.7,9.8815754]
[1680622017337,0.10724229,1858.8,1858.7,9.6663754]
[1680622017641,0.10724229,1858.8,1858.7,9.8815754]
[1680622017851,0.10724229,1858.8,1858.7,9.6663754]
[1680622018138,0.10724229,1858.8,1858.7,10.3119754]
[1680622018639,0.10724229,1858.8,1858.7,9.8815754]
[1680622020551,0.10724229,1858.8,1858.7,9.6663754]
[1680622020705,0.10724229,1858.8,1858.6,0.002]
[1680622020910,0.10724229,1858.8,1858.5,16.0931]
[1680622021105,0.10724229,1858.8,1858.5,19.07434218]
[1680622021544,0.10724229,1858.8,1858.6,8.43202218]
[1680622023509,0.10385055,1858.8,1858.6,8.43202218]
[1680622023859,0.25448055,1858.8,1858.6,10.3183344]
[1680622024354,0.25448055,1858.8,1858.6,4.6523344]
[1680622025138,0.10385055,1858.8,1858.6,4.6523344]
[1680622025340,0.02193266,1858.7,1858.5,0.008]
[1680622025510,0.17257266,1858.7,1858.3,5.672]
[1680622025710,0.02193266,1858.7,1858.4,2.76602218]
[1680622026117,0.17257266,1858.7,1858.4,2.76602218]
[1680622026526,1.154,1858.5,1858.3,0.004]
[1680622026824,0.02193266,1858.4,1858.1,0.002]
[1680622027032,0.17259266,1858.4,1858.1,2.76602218]
[1680622027423,0.47392266,1858.4,1858.1,2.76602218]
[1680622027757,0.47392266,1858.4,1858.1,2.76343698]
[1680622028157,0.02193266,1858.4,1858.1,2.76343698]
[1680622028331,0.02193266,1858.4,1857.9,0.64788]
[1680622028532,0.02193266,1858.4,1858.0,8.43202218]
[1680622028758,0.30133,1858.5,1858.0,8.43202218]
[1680622028964,0.15067,1858.4,1858.0,8.43202218]
[1680622029463,0.452,1858.4,1858.0,2.76602218]
[1680622029624,0.452,1858.4,1857.8,0.006]
[1680622029625,0.613,1858.4,1857.8,0.002]
[1680622029826,0.613,1858.4,1857.9,2.76602218]
[1680622030525,1.01538819,1858.3,1857.9,2.76602218]
[1680622030829,0.45205,1858.2,1857.9,2.76602218]
[1680622030987,1.01538819,1858.1,1857.7,10.9927]
[1680622031283,1.01538819,1858.1,1857.7,13.75072218]
[1680622031657,1.16607819,1858.1,1857.7,13.75072218]
[1680622031839,1.01538819,1858.0,1857.7,13.75072218]
[1680622032036,1.01538819,1858.0,1857.8,1.37507222]
[1680622032280,1.16608819,1858.0,1857.8,1.37507222]
[1680622032482,1.16608819,1858.0,1857.7,2.76602218]
[1680622032698,1.33868085,1858.2,1857.7,2.76602218]
[1680622032990,0.15069,1858.1,1857.7,3.6094244]
[1680622033134,0.45207,1858.1,1857.7,3.6094244]
[1680622033453,0.15069,1858.1,1857.7,3.6094244]
[1680622033970,1.29969,1858.1,1857.7,3.6094244]
[1680622034174,0.15069,1858.1,1857.7,3.6094244]
[1680622034377,1.03732085,1858.2,1857.8,8.79296462]
[1680622036058,1.18800085,1858.2,1857.8,8.79296462]
[1680622037613,1.03732085,1858.2,1857.8,8.79296462]
[1680622037758,1.18800085,1858.2,1857.8,8.79296462]
[1680622038073,1.01538819,1858.2,1857.9,7.69829646]
[1680622038281,0.009,1858.4,1858.0,8.43202218]
[1680622038770,0.15066,1858.5,1858.0,8.43202218]
[1680622038771,0.15965,1858.6,1858.0,8.64730218]
[1680622039097,0.46093,1858.7,1858.0,8.64730218]
[1680622039299,0.46093,1858.7,1858.1,0.86473022]
[1680622039300,0.30728,1858.7,1858.1,0.86473022]
[1680622039458,0.15065,1858.7,1858.1,3.8460224]
[1680622039663,0.15065,1858.7,1858.2,0.38460224]
[1680622040271,0.41411055,1858.8,1858.2,0.59986224]
[1680622040471,0.41411055,1858.8,1858.3,2.76602218]
[1680622040472,0.11285055,1858.8,1858.3,2.76602218]
[1680622040696,0.26348055,1858.8,1858.3,2.76602218]
[1680622040897,0.26348055,1858.8,1858.4,0.27660222]
[1680622041066,0.25448055,1858.8,1858.4,0.27660222]
[1680622041261,0.55574055,1858.8,1858.4,0.27660222]
[1680622041804,0.12578321,1858.8,1858.4,0.27660222]
[1680622041976,0.12578321,1858.8,1858.4,0.49183222]
[1680622042988,0.12578321,1858.8,1858.4,0.27660222]
[1680622043714,0.12578321,1858.8,1858.4,0.49183222]
[1680622044235,0.10385055,1858.8,1858.7,2.76602218]
[1680622044434,0.10385055,1858.8,1858.7,11.3733884]
[1680622044618,0.10385055,1858.8,1858.7,14.3733884]
[1680622045018,0.10385055,1858.8,1858.7,15.5793884]
[1680622050723,0.10385055,1858.8,1858.7,26.0769884]
[1680622051956,0.100159,1858.8,1858.7,26.0769884]
[1680622052807,0.000159,1858.8,1858.7,29.2859884]
[1680622053006,0.00015901,1858.9,1858.7,30.4369884]
[1680622053241,5.902e-05,1859.0,1858.9,0.5]
[1680622053408,0.22000002,1859.1,1859.0,7.17216]
[1680622053622,0.22000002,1859.1,1859.0,14.32418218]
[1680622053812,2e-08,1859.1,1859.0,14.32418218]
[1680622054013,0.11000001,1859.2,1859.0,15.57147652]
[1680622054213,0.11000001,1859.6,1859.2,0.10999999]
[1680622054450,0.11000001,1859.6,1859.2,14.50849217]
[1680622054660,0.11000001,1859.6,1859.2,28.41669217]
[1680622054815,0.11000001,1859.6,1859.2,28.30669218]
[1680622055015,0.11000001,1859.6,1859.2,31.1375614]
[1680622055325,0.11000001,1859.6,1859.2,33.2825614]
[1680622055542,0.11000001,1859.6,1859.2,31.1311014]
[1680622055726,0.11000001,1859.6,1859.2,29.9801014]
[1680622061926,0.11000001,1859.6,1859.2,31.1381014]
[1680622063160,0.11000001,1859.6,1859.2,30.9081014]
[1680622064844,0.11000001,1859.6,1859.2,31.1381014]
[1680622065549,0.11000001,1859.6,1859.2,29.9801014]
[1680622071899,0.13193267,1859.6,1859.2,14.9139014]
[1680622072049,0.13193267,1859.6,1859.2,12.08303218]
[1680622072793,0.11000001,1859.6,1859.1,0.002]
[1680622072977,4.91102218,1859.2,1858.5,0.002]
[1680622073174,2.76602218,1858.7,1858.1,0.547741]
[1680622073482,2.76602218,1858.5,1857.0,0.104]
[1680622073687,0.45202,1858.3,1857.3,0.002]
[1680622073887,1.154,1857.4,1857.0,0.1]
[1680622074222,1.149,1857.1,1857.0,0.1]
[1680622074718,6.3003475,1857.1,1857.0,0.1]
[1680622074880,9.89732916,1857.1,1857.0,0.1]
[1680622075227,6.3003475,1857.1,1857.0,0.1]
[1680622075776,7.4573475,1857.1,1857.0,0.1]
[1680622076067,8.23323525,1857.1,1857.0,0.1]
[1680622076273,3.15759041,1857.1,1857.0,0.1]
[1680622076597,2.37870266,1857.1,1857.0,0.1]
[1680622077321,2.20470266,1857.1,1857.0,0.1]
[1680622077617,7.72970266,1857.1,1857.0,0.1]
[1680622077828,7.24170266,1857.1,1857.0,0.1]
[1680622079132,12.03034498,1857.1,1857.0,0.1]
[1680622079270,0.5,1857.0,1856.9,0.1]
[1680622079475,9.34748218,1857.0,1856.8,0.1]
[1680622079691,9.34748218,1857.0,1856.6,0.1]
[1680622079692,0.5,1856.8,1856.6,0.1]
[1680622079891,2.46741,1856.7,1856.6,0.1]
[1680622080124,5.46741,1856.7,1856.6,0.1]
[1680622080331,5.47041,1856.7,1856.6,0.1]
[1680622080722,5.48741,1856.7,1856.6,0.1]
[1680622081051,8.38098847,1856.7,1856.6,0.1]
[1680622083002,8.40292113,1856.7,1856.6,0.1]
[1680622083596,3.04800077,1856.7,1856.6,0.1]
[1680622083856,2.1828,1856.7,1856.6,0.1]
[1680622084863,2.20473266,1856.7,1856.6,0.1]
[1680622087617,2.74586685,1856.7,1856.6,0.1]
[1680622088643,5.74586685,1856.7,1856.6,0.1]
[1680622088798,5.74886685,1856.7,1856.6,0.1]
[1680622088995,6.35391353,1856.7,1856.6,0.1]
[1680622091429,6.63359087,1856.7,1856.6,0.1]
[1680622091642,3.63359087,1856.7,1856.6,0.1]
[1680622091815,3.63059087,1856.7,1856.6,0.1]
[1680622092533,4.23381087,1856.7,1856.6,0.1]
[1680622093909,4.25574353,1856.7,1856.6,0.1]
[1680622094514,7.25574353,1856.7,1856.6,0.1]
[1680622094775,7.25874353,1856.7,1856.6,0.1]
[1680622095652,0.1538,1856.7,1856.6,0.1]
[1680622095954,0.1508,1856.8,1856.6,0.1]
[1680622096305,0.15079,1856.9,1856.6,0.1]
[1680622097248,0.15078,1856.9,1856.6,0.1]
[1680622097599,0.58816853,1857.1,1856.6,0.1]
[1680622097802,1.04360391,1857.0,1856.7,2.76602218]
[1680622098004,0.43738853,1857.1,1856.8,0.27660222]
[1680622098005,0.75021471,1856.9,1856.8,0.27660222]
[1680622098265,0.29607442,1857.6,1856.8,9.3548844]
[1680622098411,0.15073,1857.6,1857.0,5.88139]
[1680622098617,0.15072,1857.7,1857.1,2.76602218]
[1680622098804,0.45216,1857.7,1857.1,2.76602218]
[1680622099025,2.46715,1857.8,1857.2,3.0426244]
[1680622099357,0.45215,1857.8,1857.2,8.43202218]
[1680622099540,0.45215,1857.8,1857.2,8.43402218]
[1680622099851,0.45215,1857.8,1857.3,0.84340222]
[1680622100061,0.45215,1857.8,1857.3,3.6094244]
[1680622100416,0.45215,1857.8,1857.3,2.76602218]
[1680622101368,0.02193266,1857.7,1857.2,0.002]
[1680622101514,3.08715,1857.6,1857.1,0.002]
[1680622101711,3.08715,1857.6,1857.1,3.33882218]
[1680622101910,3.08715,1857.6,1857.1,2.77202218]
[1680622102572,3.08715,1857.6,1857.1,0.002]
[1680622102775,0.02193266,1857.5,1856.8,5.94860222]
[1680622103077,0.45226,1857.3,1856.9,3.3608824]
[1680622103280,0.45226,1857.3,1856.9,3.3668824]
[1680622103777,0.45226,1857.3,1856.9,9.0268824]
[1680622103938,0.45226,1857.3,1856.9,9.0288824]
[1680622104325,0.45226,1857.3,1857.0,0.90288824]
[1680622104543,0.45226,1857.3,1857.0,3.66891042]
[1680622105543,0.44893583,1857.3,1857.1,8.43202218]
[1680622105744,0.15075,1857.4,1857.1,8.43202218]
[1680622106125,0.15075,1857.4,1857.1,9.36571322]
[1680622106285,0.45224,1857.4,1857.1,3.69971322]
[1680622106582,0.45224,1857.4,1857.0,0.002]
[1680622106783,0.45224,1857.4,1857.0,2.76602218]
[1680622108682,0.45224,1857.4,1857.0,2.77002218]
[1680622109883,0.15074,1857.5,1857.0,3.0452244]
[1680622112294,0.15074,1857.5,1857.0,3.0432244]
[1680622113281,0.003,1857.8,1857.1,8.43202218]
[1680622113437,0.003,1857.8,1857.2,2.86720222]
[1680622113638,0.45216,1857.7,1857.2,3.6092244]
[1680622113856,0.45216,1857.7,1857.2,2.76602218]
[1680622114574,0.15072,1857.7,1857.2,2.76602218]
[1680622115102,2.48416,1857.7,1857.1,0.002]
[1680622115244,0.27034866,1857.6,1856.9,29.836]
[1680622115443,0.45223,1857.4,1857.0,2.76602218]
[1680622115792,0.45223,1857.4,1857.0,0.006]
[1680622115944,1.05522,1857.4,1856.9,0.002]
[1680622116149,2.137522,1857.3,1856.8,0.006]
[1680622116448,0.45229,1857.2,1856.8,2.77002218]
[1680622116752,0.45229,1857.2,1856.8,2.77202218]
[1680622116753,0.7112712,1857.2,1856.8,2.77202218]
[1680622117524,0.7112712,1857.2,1856.8,2.76802218]
[1680622118447,0.7112712,1857.2,1856.8,0.002]
[1680622118578,0.7112712,1857.2,1856.7,0.006]
[1680622118777,0.45229,1857.2,1856.7,2.9996]
[1680622119020,0.45229,1857.2,1856.7,0.002]
[1680622119185,0.45229,1857.2,1856.6,0.106]
[1680622119396,0.45229,1857.2,1856.6,2.87202218]
[1680622119708,0.15076,1857.2,1856.6,3.08746218]
[1680622119905,0.15076,1857.2,1856.6,3.7475684]
[1680622120111,0.45228,1857.2,1856.6,3.7475684]
[1680622120491,0.45228,1857.2,1856.6,2.87202218]
[1680622120679,2.032,1857.1,1856.6,0.106]
[1680622120880,0.45237,1856.9,1856.6,0.1]
[1680622123236,0.003,1857.1,1856.6,3.51235218]
[1680622123442,2.19176,1857.2,1856.6,3.51235218]
[1680622123443,0.15076,1857.2,1856.6,3.08146218]
[1680622123594,0.15076,1857.2,1856.7,0.30814622]
[1680622124298,0.15076,1857.2,1856.7,0.52357622]
[1680622124499,0.15076,1857.3,1856.7,0.52357622]
[1680622125095,2.93649,1857.4,1856.8,2.76602218]
[1680622125096,2.18275,1857.4,1856.8,2.76602218]
[1680622125296,0.15075,1857.3,1856.8,3.70666902]
[1680622125498,2.48424,1857.4,1856.8,3.92208902]
[1680622125745,2.48424,1857.4,1856.8,3.92608902]
[1680622125746,2.18275,1857.4,1856.8,3.92608902]
[1680622126111,2.032,1857.4,1856.8,4.35692902]
[1680622126321,2.032,1857.4,1856.8,9.08428218]
[1680622126523,0.15374,1857.5,1856.8,9.08428218]
[1680622126737,0.17267266,1857.5,1856.8,9.08428218]
[1680622127014,5.27217484,1857.5,1856.9,0.90842822]
[1680622127344,3.0,1857.4,1856.8,0.21542]
[1680622127543,3.45224,1857.4,1856.9,2.76602218]
[1680622127751,0.15075,1857.4,1856.9,2.76602218]
[1680622128043,3.15075,1857.4,1856.9,2.76602218]
[1680622128243,3.45224,1857.4,1856.9,2.76802218]
[1680622128443,3.45224,1857.4,1857.0,0.27680222]
[1680622128599,3.45224,1857.4,1857.1,2.76602218]
[1680622129202,3.45224,1857.4,1856.9,0.008]
[1680622129402,3.45224,1857.4,1856.9,2.76602218]
[1680622130347,0.15075,1857.4,1856.9,2.76602218]
[1680622131924,0.15075,1857.4,1856.9,2.98143218]
[1680622132256,2.05393266,1857.5,1857.0,3.0641654]
[1680622132575,1.15909587,1857.7,1857.0,3.0641654]
[1680622132576,0.012,1857.7,1857.5,0.00390648]
[1680622132763,0.430818,1857.8,1857.6,2.76602218]
[1680622132920,0.430818,1857.8,1857.7,0.64596]
[1680622133123,0.430818,1857.8,1857.7,3.41198218]
[1680622133367,0.430818,1857.8,1857.7,3.8891404]
[1680622133876,0.430818,1857.8,1857.7,4.3197804]
[1680622134221,0.430818,1857.8,1857.7,9.9857804]